bitfinex/quotes_ETHUSD_20250608
["timestamp","ask_amount","ask_price","bid_price","bid_amount"]
[1749425648638,7.5131902,2511.7,2511.5,3.98159728]
[1749425648938,2.1492422,2511.6,2511.5,3.98159728]
[1749425650440,2.1492422,2511.6,2511.4,3.98175385]
[1749425650641,0.9551902,2511.5,2511.4,3.98175385]
[1749425651014,0.9551902,2511.5,2511.2,3.98212332]
[1749425651336,0.9551902,2511.5,2510.8,12.29473712]
[1749425651337,1.944252,2511.3,2511.0,3.98236394]
[1749425651534,8.7082422,2511.2,2510.9,3.98257375]
[1749425651738,0.95504813,2511.1,2511.0,3.98235089]
[1749425653646,0.95504813,2511.1,2510.8,3.98279426]
[1749425653844,0.95504813,2511.0,2510.9,3.9826357]
[1749425656370,1.19381017,2511.4,2511.3,3.98200135]
[1749425656659,7.51231341,2511.4,2511.3,3.98200135]
[1749425657009,6.559,2511.4,2511.3,3.98200135]
[1749425657430,7.51227461,2511.4,2511.3,3.98200135]
[1749425658530,0.95327461,2511.4,2511.3,3.98200135]
[1749425658730,7.51227461,2511.4,2511.3,3.98200135]
[1749425659109,0.95327461,2511.4,2511.3,3.98200135]
[1749425659456,7.51227461,2511.4,2511.3,3.98200135]
[1749425660950,0.95327461,2511.4,2511.3,3.98200135]
[1749425663015,1.73697461,2511.4,2511.2,3.98213762]
[1749425663339,0.95327461,2511.3,2511.2,3.98213762]
[1749425663848,0.95327461,2511.3,2511.1,3.98224455]
[1749425664057,0.95327461,2511.2,2511.1,3.98224455]
[1749425665415,0.95327461,2511.2,2510.9,3.98262663]
[1749425665646,0.95327461,2511.2,2510.5,16.0]
[1749425665647,7.51127461,2511.1,2510.7,3.98291412]
[1749425665828,0.95327461,2511.0,2510.7,3.98291412]
[1749425666152,6.558,2511.1,2510.7,3.98291412]
[1749425666350,0.95386629,2511.0,2510.7,19.98291412]
[1749425666530,7.90330762,2511.1,2510.8,3.98279432]
[1749425666531,6.558,2511.1,2510.8,3.98279432]
[1749425666757,0.95377032,2511.0,2510.8,3.98279432]
[1749425667067,0.95378225,2510.9,2510.8,3.98279432]
[1749425667270,6.558,2511.1,2510.8,3.98279432]
[1749425667470,0.95369535,2511.0,2510.8,3.98279432]
[1749425667671,6.558,2511.1,2510.8,3.98279432]
[1749425667879,0.95370232,2511.0,2510.9,4.8106357]
[1749425668050,0.95370232,2511.0,2510.9,3.9826357]
[1749425669785,0.95370232,2511.0,2510.8,3.98271941]
[1749425669984,0.7751,2511.1,2510.8,3.98271941]
[1749425670195,0.95360702,2511.0,2510.7,3.9829062]
[1749425670434,0.95360702,2510.9,2510.7,3.98295214]
[1749425670545,0.95360702,2510.8,2510.7,3.98295214]
[1749425671605,1.19381017,2511.3,2511.2,3.98215992]
[1749425671750,11.51326118,2511.3,2511.2,3.98215992]
[1749425672151,7.51326118,2511.3,2511.2,3.98215992]
[1749425672553,0.95326118,2511.3,2511.2,3.98215992]
[1749425672754,7.51226118,2511.3,2511.2,3.98215992]
[1749425673154,7.51226118,2511.3,2511.1,3.98223747]
[1749425673384,0.95326118,2511.2,2511.1,3.98223747]
[1749425673770,1.7044873,2511.2,2510.9,3.98253554]
[1749425673967,0.95326118,2511.1,2510.9,3.98253554]
[1749425674192,1.51892612,2511.2,2510.9,3.98253554]
[1749425674368,0.9534632,2511.1,2510.9,3.98253554]
[1749425674573,0.9534632,2511.0,2510.9,3.98253554]
[1749425674774,0.9534632,2511.0,2510.7,3.98285479]
[1749425674978,4.74993057,2511.2,2510.8,3.9827217]
[1749425674979,0.7677,2511.2,2510.8,3.9827217]
[1749425675206,2.20376142,2511.1,2510.8,3.9827217]
[1749425675498,0.95348735,2511.0,2510.8,3.9827217]
[1749425675709,0.7677,2511.2,2510.8,3.9827217]
[1749425675857,0.95356034,2511.1,2510.8,3.9827217]
[1749425676058,0.95356034,2511.0,2510.8,3.98267007]
[1749425676409,0.7677,2511.2,2510.8,3.98267007]
[1749425676615,0.95365616,2511.1,2510.8,3.98267007]
[1749425676814,0.95365616,2511.0,2510.8,3.98267007]
[1749425676976,6.0001398,2511.2,2510.7,3.98284051]
[1749425677177,0.95365731,2511.1,2510.8,3.98276946]
[1749425677396,0.95365731,2511.0,2510.9,3.9826357]
[1749425678976,0.95365731,2511.0,2510.8,3.98271015]
[1749425679188,6.00012734,2511.2,2510.7,3.98290583]
[1749425679532,1.82743557,2511.1,2510.8,3.98279229]
[1749425679726,0.95401851,2511.0,2510.8,3.98279229]
[1749425680024,7.51301851,2510.9,2510.8,3.98279229]
[1749425682182,7.51301851,2510.9,2510.7,3.9829494]
[1749425682385,0.95401851,2510.8,2510.6,3.98300818]
[1749425682612,0.95401851,2510.7,2510.6,3.98300818]
[1749425683732,0.95401851,2510.7,2510.2,16.8317]
[1749425684011,0.95401851,2510.6,2510.4,3.98333749]
[1749425684225,0.7801,2510.8,2510.5,3.98327026]
[1749425684421,0.95373844,2510.7,2510.5,3.98327026]
[1749425684578,0.95373844,2510.6,2510.5,3.98327026]
[1749425686096,0.95373844,2510.6,2510.4,3.98341054]
[1749425686291,0.7801,2510.8,2510.4,3.98341054]
[1749425686491,0.95338779,2510.7,2510.4,3.98341054]
[1749425686696,0.95338779,2510.6,2510.3,4.0841072]
[1749425686902,2.20356086,2510.8,2510.4,3.98340436]
[1749425687101,0.95338988,2510.7,2510.4,3.98340436]
[1749425687416,0.95338988,2510.6,2510.4,3.98340436]
[1749425687714,2.20356086,2510.8,2510.4,3.98340436]
[1749425687882,0.95337424,2510.7,2510.4,3.98340436]
[1749425688083,0.8163,2510.4,2509.9,0.8219]
[1749425688287,6.56,2510.3,2510.2,3.98374631]
[1749425688993,1.19381017,2510.8,2510.7,3.98295296]
[1749425689194,0.95322298,2510.8,2510.7,3.98295296]
[1749425689395,6.56,2511.1,2511.0,3.9824771]
[1749425689723,7.51316608,2511.1,2511.0,3.9824771]
[1749425689883,0.95316608,2511.1,2511.0,3.9824771]
[1749425690517,7.51316608,2511.1,2511.0,3.9824771]
[1749425691727,6.56,2511.3,2511.2,3.98215992]
[1749425691929,7.51328229,2511.3,2511.2,3.98215992]
[1749425696431,7.51328229,2511.3,2511.1,3.98224018]
[1749425696725,0.95328229,2511.2,2511.0,3.98240656]
[1749425696934,0.95328229,2511.1,2511.0,3.98240656]
[1749425699131,0.95328229,2511.1,2510.9,0.7617]
[1749425699336,6.56,2511.3,2511.0,3.9824771]
[1749425699538,0.95345129,2511.2,2511.0,3.9824771]
[1749425699738,0.95345129,2511.1,2511.0,3.9824771]
[1749425700098,0.95344998,2511.1,2510.8,3.98270778]
[1749425700334,11.36200888,2511.3,2510.8,3.98270778]
[1749425700335,7.38,2511.3,2510.8,3.98279432]
[1749425700520,7.38,2511.3,2510.7,0.7617]
[1749425700521,4.93572508,2511.2,2510.7,3.98288041]
[1749425700725,0.95346167,2511.1,2510.7,3.98288041]
[1749425700911,0.95346167,2511.0,2510.8,3.98277856]
[1749425701116,0.95346167,2510.9,2510.8,3.98277856]
[1749425702227,0.95346167,2510.9,2510.7,3.98288052]
[1749425702428,1.19181248,2511.2,2510.8,3.98279432]
[1749425702644,0.95358293,2511.1,2510.8,3.98279432]
[1749425702853,0.95358293,2511.0,2510.8,3.98279432]
[1749425703150,0.95358293,2510.9,2510.8,3.98279432]
[1749425704743,8.57181248,2511.3,2510.9,3.98251807]
[1749425704970,2.4054037,2511.2,2511.0,3.98243056]
[1749425705133,0.95362603,2511.1,2511.0,3.98243056]
[1749425708760,6.93101025,2511.4,2511.3,3.98200135]
[1749425708961,11.88453496,2511.4,2511.3,3.98200135]
[1749425709669,11.88453496,2511.4,2511.2,4.79378393]
[1749425709875,0.95352471,2511.3,2511.1,3.98227826]
[1749425710064,0.95352471,2511.2,2511.1,3.98227826]
[1749425710268,0.95352471,2511.2,2511.0,4.79229345]
[1749425710465,6.93101025,2511.4,2511.0,6.5010252]
[1749425710663,1.76554635,2511.3,2511.1,3.98231413]
[1749425710975,0.95334635,2511.2,2511.0,3.98245887]
[1749425711275,0.95334635,2511.2,2510.7,0.8099]
[1749425711276,0.8122,2511.3,2510.7,4.7928284]
[1749425711475,0.9533544,2511.2,2511.0,3.9824015]
[1749425711646,0.8122,2511.3,2511.0,3.9824015]
[1749425711855,0.95336633,2511.2,2511.0,3.9824015]
[1749425712046,0.8122,2511.3,2511.0,3.9824015]
[1749425712381,0.9533662,2511.2,2511.0,3.9824015]
[1749425712579,0.8122,2511.3,2511.0,0.910022]
[1749425712782,0.95337368,2511.2,2511.0,0.910022]
[1749425712983,0.95337368,2511.1,2511.0,0.910022]
[1749425713976,0.95337368,2511.1,2510.9,3.98263019]
[1749425714159,2.00401248,2511.3,2511.0,3.98244828]
[1749425714477,0.95354703,2511.2,2511.0,3.98244828]
[1749425714681,0.95354703,2511.1,2511.0,3.98244828]
[1749425717687,6.93001025,2511.4,2511.3,3.98200135]
[1749425717988,1.32604751,2511.4,2511.3,8.06471226]
[1749425719654,1.32604751,2511.4,2511.3,3.98200135]
[1749425725461,1.32636689,2511.4,2511.2,3.98207752]
[1749425725796,0.95435664,2511.3,2511.2,3.98207752]
[1749425730307,0.95435664,2511.3,2511.0,4.8092154]
[1749425730516,0.95435664,2511.2,2511.0,5.81185186]
[1749425730805,0.95435015,2511.1,2510.9,3.98256871]
[1749425730968,6.557,2511.2,2510.9,3.98256871]
[1749425731171,0.95439359,2511.1,2510.9,3.98256871]
[1749425731396,6.557,2511.2,2510.9,3.98256871]
[1749425731582,0.95440498,2511.1,2510.9,3.98256871]
[1749425731783,6.557,2511.2,2510.9,3.98256871]
[1749425731994,0.95447276,2511.1,2510.9,3.98256871]
[1749425732197,6.557,2511.2,2510.9,3.98256871]
[1749425732406,0.9544727,2511.1,2510.9,3.98256871]
[1749425732575,0.9544727,2511.1,2510.7,4.74742066]
[1749425732576,0.9544727,2511.0,2510.8,3.98277452]
[1749425732776,6.557,2511.2,2510.8,3.98277452]
[1749425732972,0.95459464,2511.1,2510.8,3.98277452]
[1749425733308,0.95459464,2511.0,2510.7,3.982951]
[1749425733508,0.95459464,2510.9,2510.7,3.982951]
[1749425733671,11.73218312,2511.2,2510.7,3.982951]
[1749425733872,0.95465322,2511.1,2510.7,3.982951]
[1749425734096,0.95465322,2511.0,2510.7,3.982951]
[1749425734306,0.95465322,2510.9,2510.8,3.98275148]
[1749425734512,6.557,2511.2,2511.1,3.9823185]
[1749425734711,7.51164373,2511.2,2511.1,3.9823185]
[1749425734915,7.51164373,2511.2,2511.0,3.98240286]
[1749425735107,0.95464373,2511.1,2511.0,3.98240286]
[1749425735594,0.95464373,2511.1,2510.8,10.87023961]
[1749425735795,0.95464373,2511.0,2510.8,8.06539827]
[1749425735983,0.95464373,2510.9,2510.8,8.06550523]
[1749425736186,6.557,2511.2,2510.9,3.98259855]
[1749425736390,0.95473055,2511.1,2510.9,3.98259855]
[1749425736699,0.95473055,2511.0,2510.9,3.98259855]
[1749425737291,0.95473055,2511.0,2510.8,8.06545072]
[1749425737588,0.95473055,2510.9,2510.8,8.06545072]
[1749425738622,0.95473055,2510.9,2510.5,1.18851011]
[1749425738794,0.95473055,2510.8,2510.2,0.7779]
[1749425738999,12.48934481,2510.9,2510.4,3.98327539]
[1749425739000,0.95473055,2510.7,2510.4,3.98327539]
[1749425739319,7.51173055,2510.6,2510.4,3.98327539]
[1749425739618,6.557,2510.6,2510.4,3.98327539]
[1749425740121,6.557,2510.6,2510.5,3.98327026]
[1749425740423,7.51153955,2510.6,2510.4,3.98334083]
[1749425740719,6.557,2510.6,2510.4,3.98334083]
[1749425741218,6.557,2510.6,2510.2,16.48606109]
[1749425741421,6.557,2510.6,2510.3,3.98350439]
[1749425742967,0.7851,2510.5,2510.1,3.98382288]
[1749425743105,0.95373171,2510.4,2510.0,3.98406374]
[1749425743306,0.95373171,2510.3,2509.9,3.98414226]
[1749425743507,6.557,2510.2,2509.9,3.98414226]
[1749425744017,0.7971,2510.1,2509.9,3.98414226]
[1749425744419,0.7971,2510.1,2510.0,3.98406374]
[1749425744653,6.557,2510.2,2510.0,3.98406374]
[1749425749626,6.557,2510.2,2509.9,3.98419858]
[1749425749627,6.557,2510.2,2509.9,3.98412918]
[1749425749967,0.7647,2510.1,2509.4,0.799]
[1749425750111,0.95164716,2510.0,2509.5,3.98474812]
[1749425750314,0.7647,2510.1,2509.7,3.98452569]
[1749425750519,0.95165903,2510.0,2509.7,3.98452569]
[1749425750815,0.7647,2510.1,2509.9,3.98421221]
[1749425751034,6.558,2510.0,2509.9,3.98421221]
[1749425751635,6.558,2510.0,2509.4,4.88171091]
[1749425751854,6.558,2510.0,2509.6,3.98469659]
[1749425753349,6.558,2510.0,2509.7,3.9845243]
[1749425754070,6.558,2510.0,2509.6,3.98462546]
[1749425754633,12.24296211,2510.0,2509.5,3.98480862]
[1749425755020,12.24291923,2510.0,2509.4,3.98494223]
[1749425755343,4.80410448,2509.9,2509.4,3.98500247]
[1749425755556,3.98439095,2509.8,2509.3,3.98508895]
[1749425756061,4.80407055,2509.9,2509.4,3.98496901]
[1749425756418,0.8198,2509.9,2509.5,3.98471581]
[1749425756753,6.559,2509.8,2509.5,3.98477554]
[1749425758635,6.559,2509.8,2509.6,3.98464952]
[1749425759035,6.559,2509.8,2509.5,3.98477018]
[1749425759846,6.559,2509.8,2509.6,3.98466673]
[1749425760718,6.559,2509.8,2509.5,3.98480763]
[1749425761152,6.98182445,2509.8,2509.2,4.08271091]
[1749425761356,6.98182445,2509.8,2509.4,3.98500516]
[1749425761974,10.96625069,2509.8,2509.3,3.9850999]
[1749425762172,0.779,2509.6,2509.2,3.98519578]
[1749425762538,1.95354226,2509.6,2509.2,3.98519578]
[1749425763067,1.95354226,2509.6,2508.8,4.08271091]
[1749425763227,1.95354226,2509.6,2509.2,3.98530357]
[1749425764142,5.93830077,2509.6,2509.1,3.98546177]
[1749425764364,0.7763,2509.3,2508.9,3.9857379]
[1749425764562,6.559,2509.2,2509.0,3.98560893]
[1749425765072,6.559,2509.2,2508.8,8.06864535]
[1749425765370,6.559,2509.2,2508.9,3.98577633]
[1749425766071,6.559,2509.2,2509.0,3.98563173]
[1749425767242,6.559,2509.2,2508.9,3.98573676]
[1749425768120,6.559,2509.2,2509.0,3.98561921]
[1749425768538,6.559,2509.2,2509.1,3.9854928]
[1749425772371,8.24436671,2509.2,2508.9,3.98578734]
[1749425772566,0.95183671,2509.1,2508.9,3.98578734]
[1749425772776,7.29253,2509.2,2508.9,3.98578734]
[1749425773061,0.95219096,2509.1,2508.9,3.98578734]
[1749425773269,7.29253,2509.2,2508.9,3.98578734]
[1749425773467,0.95200114,2509.1,2509.0,3.98565165]
[1749425773827,0.95200114,2509.1,2508.9,3.98575335]
[1749425774033,7.29253,2509.2,2508.9,3.98575335]
[1749425774232,0.95207898,2509.1,2508.9,3.98575335]
[1749425774473,7.29253,2509.2,2508.9,3.98575335]
[1749425774646,7.29253,2509.2,2509.0,3.98565165]
[1749425774647,0.95205274,2509.1,2509.0,3.98565165]
[1749425776435,1.1882402,2509.5,2509.4,3.98501633]
[1749425776632,11.51104037,2509.5,2509.4,3.98501633]
[1749425777381,4.95204037,2509.5,2509.4,3.98501633]
[1749425777547,6.559,2509.8,2509.7,3.98453998]
[1749425777752,7.51114622,2509.8,2509.7,8.06725089]
[1749425778271,7.51114622,2509.8,2509.6,3.9846743]
[1749425778444,0.95214622,2509.7,2509.5,3.98478399]
[1749425778793,0.95214622,2509.6,2509.5,3.98478399]
[1749425779088,0.95214622,2509.6,2509.5,9.3556854]
[1749425779254,6.559,2509.8,2509.7,3.98453998]
[1749425779450,7.5115097,2509.8,2509.7,3.98453998]
[1749425780145,0.9525097,2509.8,2509.7,3.98453998]
[1749425780350,7.5115097,2509.8,2509.7,3.98453998]
[1749425785800,7.5115097,2509.8,2509.6,3.98456496]
[1749425785964,0.9525097,2509.7,2509.6,3.98456496]
[1749425787409,0.9525097,2509.7,2509.6,5.189772]
[1749425789052,0.9525097,2509.7,2509.6,6.020272]
[1749425789804,6.558,2509.8,2509.7,3.98453998]
[1749425789981,7.5113352,2509.8,2509.7,3.98453998]
[1749425795294,8.3306352,2509.8,2509.3,3.98510886]
[1749425795500,8.3306352,2509.8,2509.2,16.0]
[1749425795501,1.70446872,2509.7,2509.4,3.9849863]
[1749425795800,0.9533352,2509.6,2509.4,3.9849863]
[1749425796096,7.5103352,2509.5,2509.2,3.98525323]
[1749425796284,0.9533352,2509.4,2509.2,3.98525323]
[1749425796478,6.557,2509.5,2509.2,3.98525323]
[1749425796678,0.95346612,2509.4,2509.2,3.98525323]
[1749425796884,6.557,2509.5,2509.3,3.98517514]
[1749425797097,0.95344654,2509.4,2509.3,3.98517514]
[1749425797595,4.80375458,2509.8,2509.6,3.98469875]
[1749425797596,1.1882402,2509.8,2509.6,3.98469875]
[1749425797768,0.95343418,2509.7,2509.6,3.98469875]
[1749425797973,7.51043418,2509.7,2509.6,8.06740966]
[1749425798162,6.557,2509.7,2509.6,8.06740966]
[1749425798368,6.557,2509.7,2509.6,8.84180966]
[1749425798568,6.557,2509.7,2509.6,10.12447371]
[1749425798769,7.7452402,2510.3,2510.1,3.98390502]
[1749425798964,4.95322738,2510.2,2510.1,4.75830502]
[1749425799279,0.95322738,2510.2,2510.1,8.84101593]
[1749425799478,0.95322738,2510.2,2510.1,10.52194096]
[1749425800699,6.556,2510.4,2510.3,3.98358761]
[1749425800898,0.95277198,2510.4,2510.3,3.98358761]
[1749425801067,7.50877198,2510.4,2510.3,3.98358761]
[1749425802239,7.50877198,2510.4,2510.3,8.06629852]
[1749425802240,0.95277198,2510.4,2510.3,8.06629852]
[1749425802536,1.1882402,2510.9,2510.8,3.98279432]
[1749425802694,11.50836162,2510.9,2510.8,3.98279432]
[1749425803028,7.50836162,2510.9,2510.8,3.98279432]
[1749425803401,0.95236162,2510.9,2510.8,3.98279432]
[1749425803585,7.50836162,2510.9,2510.8,3.98279432]
[1749425803786,0.95236162,2510.9,2510.8,3.98279432]
[1749425804020,0.95236162,2510.9,2510.8,8.06550523]
[1749425804223,6.556,2511.0,2510.9,3.9826357]
[1749425804525,0.95161558,2511.0,2510.9,3.9826357]
[1749425804873,6.555,2511.1,2511.0,3.9824771]
[1749425805077,11.50657988,2511.1,2511.0,3.9824771]
[1749425805286,11.50620323,2511.1,2511.0,3.9824771]
[1749425805918,6.555,2511.1,2511.0,3.9824771]
[1749425807438,6.555,2511.1,2511.0,5.38560462]
[1749425810209,6.555,2511.1,2510.9,3.9825043]
[1749425810939,6.555,2511.1,2510.8,0.7785]
[1749425811113,0.8189,2511.0,2510.5,3.98322032]
[1749425811317,0.8189,2511.0,2510.2,16.7651]
[1749425811502,0.8189,2511.0,2510.5,3.98317714]
[1749425811837,0.8189,2511.0,2510.4,3.98342003]
[1749425811838,3.98279804,2510.8,2510.4,16.0]
[1749425812041,6.553,2510.7,2510.4,16.0]
[1749425812210,6.553,2510.7,2510.3,3.98353406]
[1749425812430,6.553,2510.7,2510.2,0.7651]
[1749425812431,6.553,2510.7,2510.4,3.98342621]
[1749425813249,0.8206,2510.6,2510.1,3.98386325]
[1749425813466,0.8206,2510.6,2510.4,3.98335216]
[1749425814850,0.8206,2510.6,2510.5,3.98327026]
[1749425815640,0.8206,2510.9,2510.6,3.98296521]
[1749425815983,1.1882402,2511.3,2510.7,4.08271091]
[1749425816299,3.6830402,2511.7,2511.4,3.9817687]
[1749425816577,4.0,2511.5,2511.4,3.9817687]
[1749425816779,4.94937143,2511.5,2511.4,3.9817687]
[1749425816965,0.94937143,2511.5,2511.4,3.9817687]
[1749425817469,0.94937143,2511.5,2511.3,3.9819179]
[1749425817643,6.553,2511.6,2510.9,4.86201091]
[1749425817842,0.94922839,2511.5,2511.1,3.98224146]
[1749425818044,0.94922839,2511.4,2511.1,3.98224146]
[1749425818273,3.98178212,2511.5,2511.0,4.46859548]
[1749425818465,5.71764061,2511.4,2510.9,3.98255726]
[1749425818667,0.7865,2511.4,2511.0,3.98245356]
[1749425819480,0.7865,2511.4,2511.1,3.98228599]
[1749425820742,0.7865,2511.4,2510.8,3.98273863]
[1749425820952,0.7865,2511.4,2510.9,4.45741247]
[1749425821157,0.7865,2511.4,2511.0,3.98244342]
[1749425822179,0.7865,2511.4,2511.1,3.98216566]
[1749425822369,0.7865,2511.4,2511.0,3.98236913]
[1749425823273,0.7865,2511.4,2510.7,4.7495119]
[1749425823475,0.94967865,2511.3,2510.8,3.98269463]
[1749425823679,6.552,2511.2,2510.8,3.98269463]
[1749425823878,6.552,2511.2,2510.9,3.98261219]
[1749425824501,6.552,2511.2,2511.0,3.98247574]
[1749425825258,6.551,2511.1,2511.0,3.98247574]
[1749425826566,6.551,2511.1,2511.0,5.58139658]
[1749425826808,1.1882402,2511.5,2511.4,3.98184279]
[1749425827025,1.1882402,2511.9,2511.8,3.98120869]
[1749425827303,1.715,2512.2,2512.1,3.98073325]
[1749425827599,9.21700583,2512.2,2512.0,0.7507]
[1749425827805,8.266,2512.2,2512.0,4.73153632]
[1749425827977,8.266,2512.2,2512.0,3.98083632]
[1749425828298,1.715,2512.4,2512.2,3.98057076]
[1749425828529,7.50178928,2512.3,2512.0,3.98075569]
[1749425828816,6.551,2512.3,2512.0,3.98075569]
[1749425828970,6.551,2512.3,2511.9,3.9809713]
[1749425829177,0.95102028,2512.2,2511.8,0.7507]
[1749425829409,3.98113238,2511.9,2511.3,0.7883]
[1749425829593,9.21550775,2511.8,2511.0,0.7883]
[1749425829893,3.98169496,2511.5,2511.0,3.98238383]
[1749425830070,7.50050775,2511.4,2511.0,3.98238383]
[1749425830272,10.53184712,2511.4,2510.7,0.7883]
[1749425830481,0.95109499,2511.3,2510.7,1.69849215]
[1749425830684,0.95109499,2511.2,2511.0,3.98240082]
[1749425830880,3.98201016,2511.3,2510.8,3.98271951]
[1749425831108,3.98201016,2511.3,2510.7,5.68143206]
[1749425831109,0.95113497,2511.2,2510.9,3.98254518]
[1749425831411,6.55,2511.4,2510.9,3.98251331]
[1749425831608,0.95142998,2511.3,2510.9,3.98251331]
[1749425831820,1.74752998,2511.2,2510.7,0.91019215]
[1749425832025,0.7961,2511.2,2510.7,4.89302377]
[1749425832239,0.7961,2511.2,2510.9,3.98255644]
[1749425833014,0.9517682,2511.1,2510.9,3.98255644]
[1749425833190,0.7961,2511.2,2510.9,3.98255644]
[1749425833999,0.7961,2511.2,2511.0,3.98242289]
[1749425834315,6.55,2511.4,2510.9,3.98252911]
[1749425834615,7.50186317,2511.3,2510.9,0.79654821]
[1749425834788,6.55,2511.3,2511.2,3.98215992]
[1749425835121,7.50180741,2511.3,2511.2,3.98215992]
[1749425835319,0.95180741,2511.3,2511.2,3.98215992]
[1749425835474,7.50180741,2511.3,2510.9,3.98258554]
[1749425835680,1.77983127,2511.2,2510.7,3.98281745]
[1749425835959,6.55,2511.3,2510.9,3.98261149]
[1749425836160,0.95186561,2511.2,2510.6,20.37547044]
[1749425836362,6.55,2511.2,2511.0,3.98231966]
[1749425836655,2.0162402,2511.5,2511.1,3.98230006]
[1749425836959,6.55,2511.2,2511.1,3.98230006]
[1749425837161,7.50184155,2511.2,2511.1,3.98230006]
[1749425837347,1.715,2511.4,2511.2,3.98209822]
[1749425837549,7.50182724,2511.3,2511.2,3.98209822]
[1749425837915,0.95182724,2511.3,2511.2,3.98209822]
[1749425838475,1.9804402,2511.7,2511.3,3.98189633]
[1749425838769,6.55,2511.4,2511.0,3.98239133]
[1749425838931,0.95180896,2511.3,2510.8,3.98279432]
[1749425839133,6.55,2511.4,2510.8,6.49748039]
[1749425839332,0.95179277,2511.3,2510.8,6.49739606]
[1749425839676,0.9518693,2511.2,2510.8,6.49739606]
[1749425839866,3.98208823,2511.3,2510.8,6.49739606]
[1749425840070,0.763,2511.3,2510.9,3.9826357]
[1749425840687,0.763,2511.3,2510.7,0.7888]
[1749425840835,0.95187165,2511.2,2510.5,0.8125]
[1749425841032,2.66592986,2511.1,2510.2,0.8125]
[1749425841236,7.50192986,2511.0,2510.2,5.19208076]
[1749425841478,6.55,2511.0,2510.7,3.98293993]
[1749425842036,6.55,2511.0,2510.8,3.98278472]
[1749425842267,6.55,2511.0,2510.7,3.98286579]
[1749425843166,3.08072602,2511.3,2510.8,3.98279432]
[1749425843167,1.9512402,2511.3,2510.8,3.98279432]
[1749425843507,7.50217815,2511.2,2510.9,3.98255075]
[1749425843668,0.95217815,2511.1,2510.9,3.98255075]
[1749425844007,6.55,2511.2,2510.9,3.98255075]
[1749425844202,0.95213194,2511.1,2511.0,3.9824771]
[1749425845204,1.9415402,2511.6,2511.4,3.98184279]
[1749425845371,7.50241384,2511.5,2511.0,0.79650861]
[1749425845565,0.95241384,2511.4,2511.2,3.98208189]
[1749425845762,0.95241384,2511.3,2511.2,3.98208189]
[1749425846362,7.50241384,2511.3,2511.2,5.26474094]
[1749425847126,7.50241384,2511.3,2511.2,3.98215992]
[1749425848819,2.9022402,2511.6,2511.2,3.98215992]
[1749425848820,6.55,2511.5,2511.4,3.98184279]
[1749425848992,0.95237248,2511.5,2511.4,3.98184279]
[1749425849615,1.3257596,2511.5,2511.4,3.98184279]
[1749425849826,0.95237248,2511.5,2511.1,3.98220794]
[1749425850027,0.95237248,2511.4,2511.2,3.98200982]
[1749425850190,6.55,2511.6,2511.2,3.98200982]
[1749425850509,0.95246004,2511.5,2511.0,3.98243001]
[1749425850711,0.95246004,2511.4,2511.1,3.98222342]
[1749425850918,0.95246004,2511.3,2511.1,3.98222342]
[1749425851113,0.8203,2511.5,2511.1,3.98222342]
[1749425851319,0.95247357,2511.4,2510.9,0.8048]
[1749425851492,0.95247357,2511.3,2511.1,3.98222386]
[1749425851692,0.8203,2511.5,2511.1,3.98222386]
[1749425851925,1.32589494,2511.4,2511.1,3.98222386]
[1749425852128,0.95248741,2511.3,2511.1,3.98222386]
[1749425852319,0.8203,2511.5,2511.2,3.98215992]
[1749425852518,0.95249098,2511.4,2511.2,3.98215992]
[1749425852730,0.95249098,2511.3,2511.1,3.98224845]
[1749425852907,0.8203,2511.5,2511.1,4.95038194]
[1749425853108,1.32591467,2511.4,2511.2,3.98211003]
[1749425853332,0.9525043,2511.3,2511.2,3.98215992]
[1749425853498,6.55,2511.6,2511.1,0.96813349]
[1749425853698,1.32584916,2511.5,2511.4,3.98169549]
[1749425853896,0.9524596,2511.5,2511.4,3.98169549]
[1749425854096,2.9022402,2511.9,2511.7,3.9813672]
[1749425854340,7.87573244,2511.8,2511.7,3.9813672]
[1749425854542,7.87572788,2511.8,2511.7,3.9813672]
[1749425854789,7.50237729,2511.8,2511.6,3.98146548]
[1749425854902,0.95237729,2511.7,2511.6,3.98146548]
[1749425855419,6.549,2512.0,2511.8,3.98112329]
[1749425855628,0.95221513,2511.9,2511.8,3.98112329]
[1749425855834,4.93327959,2511.9,2511.4,4.7972633]
[1749425856031,1.77421513,2511.8,2511.4,3.9817633]
[1749425856335,0.95221513,2511.7,2511.3,3.98191554]
[1749425856500,11.48279009,2511.6,2511.1,3.98226717]
[1749425856832,0.8021,2511.4,2511.1,3.98230804]
[1749425857447,4.93463405,2511.3,2510.8,3.9826678]
[1749425857648,0.95261645,2511.2,2510.9,3.98259048]
[1749425857804,6.549,2511.1,2510.8,3.98279432]
[1749425858001,6.549,2511.1,2510.9,3.98248054]
[1749425858808,6.549,2511.1,2510.8,6.1418429]
[1749425859001,6.549,2511.1,2511.0,3.9824771]
[1749425859424,7.50287854,2511.1,2511.0,3.9824771]
[1749425859822,7.50287854,2511.1,2510.7,0.79659149]
[1749425860057,6.549,2511.1,2510.9,3.98255956]
[1749425860727,6.549,2511.1,2510.8,3.98270901]
[1749425861243,6.549,2511.1,2510.9,3.98263382]
[1749425862344,0.95392641,2511.0,2510.7,3.98281769]
[1749425862549,6.549,2511.1,2510.7,3.98281769]
[1749425862728,0.95393363,2511.0,2510.7,3.98281769]
[1749425862921,6.549,2511.1,2510.8,3.98278023]
[1749425863126,0.95392853,2511.0,2510.8,3.98278023]
[1749425863339,6.549,2511.1,2510.9,3.98261612]
[1749425863516,0.9539304,2511.0,2510.9,3.98261612]
[1749425864954,0.9539304,2511.0,2510.8,3.98272701]
[1749425865251,6.549,2511.1,2510.7,3.98285684]
[1749425865434,1.75599841,2511.0,2510.8,3.98278101]
[1749425865759,0.8021,2511.0,2510.8,3.98278101]
[1749425865932,0.8021,2511.0,2510.9,3.9826357]
[1749425866115,0.95390077,2511.0,2510.9,3.9826357]
[1749425868314,0.95390077,2511.0,2510.8,3.98267368]
[1749425868630,6.549,2511.1,2510.8,3.98267368]
[1749425868832,0.95384215,2511.0,2510.8,3.98267368]
[1749425869031,6.549,2511.1,2510.8,3.98267368]
[1749425869233,0.95384262,2511.0,2510.8,3.98267368]
[1749425869561,6.549,2511.1,2510.9,3.9826357]
[1749425869722,6.549,2511.1,2511.0,3.9824771]
[1749425869923,7.50282892,2511.1,2510.4,16.8111]
[1749425870124,0.95382892,2511.0,2510.8,3.98270964]
[1749425870322,6.549,2511.1,2510.8,3.98270964]
[1749425870525,0.9538139,2511.0,2510.8,3.98270964]
[1749425870748,6.549,2511.1,2510.8,3.98270964]
[1749425870953,0.95381211,2511.0,2510.9,3.9826357]